Cogmind - Beta 14 @@@ ROGUE MODE // 2025.05.02 @ 15:07:20 Player: Quartz Result: Destroyed by as-76410 with Assembled Rifle Performance ------------- Evolutions (1) 500 Regions Visited (4) 800 Robots Destroyed (24) 120 Value Destroyed (621) 621 Prototype IDs (1) 20 Alien Tech Used (0) 0 Bonus (0) 0 TOTAL SCORE: 2061 Bonus ------- None Cogmind --------- Core Integrity 0/400 Matter 199/300 Energy 100/100 System Corruption 7% Temperature Cool (0) Movement Rolling (220) Ox8 Location -9/Mines Parts ------- > --- POWER (1) -------- (None) > --- PROPULSION (2) --- Compact Wheel (fused) > --- UTILITY (4) ------ Cargo Storage Unit > --- WEAPON (2) ------- (None) > --- INVENTORY (30) --- Light Ion Engine Improved Heat Sink Large Storage Unit High-capacity Matter Pod (200) Structural Scanner Tractor Beam EM Pulse Gun Improved Light Cannon Peak State ------------ > --- POWER ------------ Light Nuclear Core > --- PROPULSION ------- Light Treads Light Treads > --- UTILITY ---------- Improved Heat Sink Cargo Storage Unit Shield Generator > --- WEAPON ----------- Medium Laser Improved Medium Laser > --- INVENTORY -------- Light Ion Engine Improved Ion Engine Improved Heat Sink Small Storage Unit High-capacity Matter Pod Structural Scanner Propulsion Shielding Shield Generator Tractor Beam EM Pulse Gun EM Pulse Gun Autogun Datajack [Rating: 17] Favorites ----------- Power Light Nuclear Core Engine Improved Ion Engine Power Core Light Nuclear Core Propulsion Light Treads Treads Light Treads Wheel Compact Wheel Utility Cargo Storage Unit Device Improved Heat Sink Storage Cargo Storage Unit Protection Propulsion Shielding Weapon EM Pulse Gun Energy Gun EM Pulse Gun Ballistic Gun Autogun Ballistic Cannon Improved Light Cannon Special Melee Weapon Datajack Build | -11 -10 -10 -9 -9 ------- Run | Yrd Mat Min Mat Min Slots Evolved 2 | . . . 2 . Power . | . . . . . Propulsion . | . . . . . Utility 2 | . . . 2 . Weapon . | . . . . . Parts Attached 33 | 6 5 6 14 2 Power 4 | 1 1 1 1 . Engine 3 | 1 1 . 1 . Core 1 | . . 1 . . Reactor . | . . . . . Propulsion 4 | 2 . . 2 . Treads 2 | 2 . . . . Leg . | . . . . . Wheel 2 | . . . 2 . Hover . | . . . . . Flight . | . . . . . Utility 8 | 1 1 2 4 . Device 5 | . 1 1 3 . Storage 2 | 1 . 1 . . Processor . | . . . . . Hackware . | . . . . . Protection 1 | . . . 1 . Artifact . | . . . . . Weapon 17 | 2 3 3 7 2 Energy Gun 12 | 2 2 3 4 1 Energy Cannon . | . . . . . Ballistic Gun 3 | . 1 . 1 1 Ballistic Cannon 1 | . . . 1 . Launcher . | . . . . . Special Weapon . | . . . . . Impact Weapon . | . . . . . Slashing Weapon . | . . . . . Piercing Weapon . | . . . . . Special Melee Weapon 1 | . . . 1 . Unidentified Prototypes 1 | . . . 1 . Corrupted Parts 3 | . 1 2 . . System Corruption 13 | . 1 12 . . Parts Lost 13 | . . . 6 7 Power 2 | . . . 1 1 Propulsion 3 | . . . 2 1 Utility 3 | . . . 1 2 Weapon 5 | . . . 2 3 Highest Loss Streak 7 | . . . 6 7 To Critical Strikes . | . . . . . Average Slot Usage (%) 82 | . 95 90 77 49 Engine 6 | . 14 2 5 5 Core 5 | . . 11 5 . Treads 16 | . 28 28 10 . Wheel 1 | . . . 2 12 Device 13 | . 10 5 17 10 Storage 12 | . 14 14 11 11 Protection 2 | . . . 4 . Energy Gun 16 | . 16 25 14 . Ballistic Gun 5 | . 10 1 5 1 Peak Build Rating 17 | 6 7 13 17 15 Average Rating 11 | 4 6 10 13 9 On Entrance 7 | . 6 7 10 15 Naked Turns . | . . . . . Heaviest Build 155 | 11 11 149 155 154 Greatest Support 40 | 40 40 40 40 32 Greatest Overweight (x) 51 | . . 3 51 9 Average Overweight (x) 2 | . . 1 7 7 Largest Inventory Capacity 30 | 8 8 30 30 30 Average Capacity 23 | 7 8 21 30 30 Most Carried 14 | 3 8 10 14 9 Average Carried 8 | 1 5 8 10 8 Final Capacity 30 | 8 8 30 30 30 Final Carried 10 | 2 7 10 9 8 Class Distribution -------------------- 71% | Hauler-Mutant 28% | Mutant Dominant Class ---------------- Mutant | -10/Materials Hauler-Mutant | -10/Mines Hauler-Mutant | -9/Materials Hauler-Mutant | -9/Mines Resources | -11 -10 -10 -9 -9 ----------- Run | Yrd Mat Min Mat Min Matter Collected 938 | 194 162 270 300 12 Remotely 306 | . 81 225 . . Salvage Created 998 | . 204 198 486 110 Parts 56 | . 13 12 24 7 Haulers Intercepted . | . . . . . Recyclers Shooed . | . . . . . Parts Field Recycled . | . . . . . Retrieved Matter . | . . . . . Parts Self-Destructed . | . . . . . Prevented . | . . . . . Kills | -11 -10 -10 -9 -9 ------- Run | Yrd Mat Min Mat Min Combat Hostiles Destroyed 24 | . 3 4 7 10 Guns 15 | . 3 4 5 3 Cannons 9 | . . . 2 7 Classes Destroyed 8 | . 2 . 4 2 Worker 2 | . . . 2 . Recycler 3 | . 1 . 2 . Watcher 2 | . . . 2 . Swarmer 3 | . . . . 3 Grunt 12 | . 3 4 5 . Duelist 1 | . . . 1 . Sentry 1 | . . . 1 . Assembled 7 | . . . . 7 Best Kill Streak 5 | . 2 3 2 5 Combat Bots Only 5 | . 1 3 2 5 Max Kills in Single Turn 1 | . 1 1 1 1 Gunslinging . | . . . . . Exploded . | . . . . . Melee . | . . . . . Uniques/NPCs Destroyed . | . . . . . Combat | -11 -10 -10 -9 -9 -------- Run | Yrd Mat Min Mat Min Hostile Shots Fired 209 | . 20 4 118 67 Missed 58 | . 4 1 37 16 Damage Taken 1855 | . 248 41 878 688 Core 464 | . 62 . 171 231 Absorbed by Shields 266 | . . . 213 53 Redirected to Shielding 4 | . . . 4 . Core Remaining (%) 87 | 100 . 75 . . Volleys Fired 102 | . 15 17 36 34 Largest 2 | . 2 2 2 1 Hottest 106 | . 80 105 106 50 Shots Fired 149 | . 30 29 56 34 Gun 120 | . 30 29 49 12 Cannon 29 | . . . 7 22 Launcher . | . . . . . Special . | . . . . . Kinetic 72 | . 8 6 28 30 Thermal 45 | . 21 10 10 4 Explosive . | . . . . . Electromagnetic 32 | . 1 13 18 . Robot Hit Streak 9 | . 9 5 6 4 Robot Miss Streak 3 | . 3 3 2 2 Penetration Max . | . . . . . Secondary Targets . | . . . . . Shots Hit Robots 96 | . 19 18 37 22 Core Hits 54 | . 10 13 17 14 Critical Kills . | . . . . . Critical Parts Destroyed 1 | . . 1 . . Critical Strikes 3 | . . 2 . 1 Burn 2 | . . 1 . 1 Destroy 1 | . . 1 . . Melee Attacks . | . . . . . Impact . | . . . . . Slashing . | . . . . . Piercing . | . . . . . Sneak Attacks . | . . . . . Combat Hostiles . | . . . . . Follow-up Attacks . | . . . . . Damage Inflicted 1485 | . 193 252 597 443 Guns 1029 | . 193 252 474 110 Cannons 417 | . . . 84 333 Explosions 39 | . . . 39 . Melee . | . . . . . Ramming . | . . . . . Kinetic 803 | . 40 42 315 406 Thermal 403 | . 138 81 147 37 Explosive . | . . . . . Electromagnetic 279 | . 15 129 135 . Impact . | . . . . . Slashing . | . . . . . Piercing . | . . . . . Highest Corruption 15 | . 3 15 . 7 Average Corruption 7 | . 2 11 . 5 Corruption Purged . | . . . . . Corruption Blocked . | . . . . . Effects 28 | . 4 21 . 3 Message Errors 9 | . 1 8 . . Matter Fused 9 | . 2 7 . . Heat Flow Errors 1 | . . 1 . . Energy Discharges 2 | . . 1 . 1 Parts Rejected 1 | . 1 . . . Parts Fused 1 | . . . . 1 Data Loss (minor) 2 | . . 2 . . Misfires 2 | . . 2 . . Alerts 1 | . . . . 1 Overload Shots . | . . . . . Overflow Damage 4 | . . . 4 . Projectiles . | . . . . . Explosions 4 | . . . 4 . Melee . | . . . . . Knockbacks 2 | . . . . 2 Impact . | . . . . . Kinetic 2 | . . . . 2 Secondary . | . . . . . Self-Inflicted Damage 29 | . . . 29 . Shots 1 | . . . 1 . Rammed . | . . . . . Targets Rammed . | . . . . . Kicked . | . . . . . Crushed . | . . . . . Highest Temperature 260 | . 117 260 39 25 Average Temperature 56 | . 33 88 11 16 Received Heat Transfer 569 | . 117 24 303 125 Effects 1 | . . 1 . . Energy Bleed 1 | . . 1 . . Siege Activations . | . . . . . Robots Corrupted . | . . . . . Combat Hostiles . | . . . . . Parts Fried . | . . . . . Impact Corruptions . | . . . . . Robots Melted . | . . . . . Combat Hostiles . | . . . . . Parts Melted . | . . . . . Heat Transferred 1092 | . 325 273 309 185 Parts Sabotaged . | . . . . . Parts Stolen . | . . . . . Parts Stripped . | . . . . . Power Chain Reactions 1 | . . . 1 . Alert | -11 -10 -10 -9 -9 ------- Run | Yrd Mat Min Mat Min Peak Influence 117 | . 117 80 87 92 Initial 27 | . . . . 27 Average 33 | . 58 46 18 69 Maximum Alert Level . | . . . . . Low Security (%) 100 | 100 100 100 100 100 Level 1 . | . . . . . Level 2 . | . . . . . Level 3 . | . . . . . Level 4 . | . . . . . Level 5 . | . . . . . High Security . | . . . . . Max Security . | . . . . . Squads Dispatched 3 | . 1 . 2 . Investigation 1 | . . . 1 . Extermination . | . . . . . Reinforcement 2 | . 1 . 1 . Assault . | . . . . . Garrison . | . . . . . Intercept . | . . . . . Searches Triggered . | . . . . . Construction Impeded . | . . . . . Haulers Reinforced . | . . . . . Active Scanning Responses . | . . . . . Cargo Convoy Interrupts . | . . . . . Stealth | -11 -10 -10 -9 -9 --------- Run | Yrd Mat Min Mat Min Distress Signals 1 | . 1 . . . Communications Jammed . | . . . . . Distress Signals . | . . . . . Times Spotted 48 | . 10 2 18 18 Peak Tracking Total 12 | . 3 2 5 12 Tactical Retreats 2 | . 1 . . 1 Traps | -11 -10 -10 -9 -9 ------- Run | Yrd Mat Min Mat Min Traps Triggered 1 | . 1 . . . Indirectly . | . . . . . Trap Hack Attempts . | . . . . . Triggered . | . . . . . Disarmed . | . . . . . Reprogrammed . | . . . . . Reused . | . . . . . Traps Extracted . | . . . . . Installed . | . . . . . Triggered . | . . . . . Machines | -11 -10 -10 -9 -9 ---------- Run | Yrd Mat Min Mat Min Machines Disabled . | . . . . . Max in Single Turn . | . . . . . Machines Repaired . | . . . . . Machines Dismantled . | . . . . . Machines Sabotaged . | . . . . . Overloaded Fab Kills . | . . . . . Hacking | -11 -10 -10 -9 -9 --------- Run | Yrd Mat Min Mat Min Machines Accessed 3 | . 1 . 2 . Terminals 1 | . 1 . . . Fabricators . | . . . . . Repair Stations 1 | . . . 1 . Recycling Units 1 | . . . 1 . Scanalyzers . | . . . . . Garrison Access . | . . . . . Total Hacks 10 | . 3 . 7 . Successful 8 | . 3 . 5 . Failed 2 | . . . 2 . Catastrophic . | . . . . . Database Lockouts . | . . . . . Manual . | . . . . . Terminals 3 | . 3 . . . Fabricators . | . . . . . Repair Stations 3 | . . . 3 . Recycling Units 4 | . . . 4 . Scanalyzers . | . . . . . Garrison Access . | . . . . . Terminal Hacks 3 | . 3 . . . Record 3 | . 3 . . . Fabricator Hacks . | . . . . . Repair Station Hacks 1 | . . . 1 . Scan Component 1 | . . . 1 . Recycling Unit Hacks 4 | . . . 4 . Recycle Component 3 | . . . 3 . Process 1 | . . . 1 . Scanalyzer . | . . . . . Garrison Access Hacks . | . . . . . Unauthorized Hacks . | . . . . . Terminals . | . . . . . Fabricators . | . . . . . Repair Stations . | . . . . . Recycling Units . | . . . . . Scanalyzers . | . . . . . Garrison Access . | . . . . . Data Cores Recovered . | . . . . . Used . | . . . . . Hacking Detections 2 | . . . 2 . Full Trace Events 2 | . . . 2 . Feedback Events . | . . . . . Feedback Blocked . | . . . . . Robot Schematics Acquired . | . . . . . Robots Built . | . . . . . Authchips . | . . . . . Time . | . . . . . Total Robot Build Rating . | . . . . . Part Schematics Acquired . | . . . . . Parts Built . | . . . . . Authchips . | . . . . . Time . | . . . . . Total Part Build Rating . | . . . . . Parts Repaired . | . . . . . Time . | . . . . . Parts Recycled 3 | . . . 3 . Recycled Matter 161 | . . . 161 . Retrieved Matter . | . . . . . Retrieved Components . | . . . . . Parts Scanalyzed . | . . . . . Part Schematics Acquired . | . . . . . Parts Damaged . | . . . . . Bothacking | -11 -10 -10 -9 -9 ------------ Run | Yrd Mat Min Mat Min Used RIF Installer . | . . . . . Robots Hacked . | . . . . . Non-combat . | . . . . . Combat . | . . . . . Robot Hacks Applied . | . . . . . Relay Couplers Released . | . . . . . Fabnet Peak Effective % . | . . . . . Robots Rewired . | . . . . . Allies Hacked . | . . . . . Hacks Repelled . | . . . . . Allies | -11 -10 -10 -9 -9 -------- Run | Yrd Mat Min Mat Min Total Allies . | . . . . . Largest Group . | . . . . . Highest-Rated Group . | . . . . . Highest-Rated Ally . | . . . . . Total Orders . | . . . . . Ally Attacks . | . . . . . Total Damage . | . . . . . Kills . | . . . . . Allies Corrupted . | . . . . . Allies Melted . | . . . . . Intel | -11 -10 -10 -9 -9 ------- Run | Yrd Mat Min Mat Min Robot Analysis Total . | . . . . . Derelict Logs Recovered . | . . . . . Drone Launches . | . . . . . Drone Recoveries . | . . . . . Exploration | -11 -10 -10 -9 -9 ------------- Run | Yrd Mat Min Mat Min Turns Passed 2609 | 69 474 553 1402 111 Spaces Moved 746 | 43 259 183 241 20 Core 33 | 12 . . 21 . Treads 620 | 31 259 183 147 . Legs . | . . . . . Wheels 93 | . . . 73 20 Hover . | . . . . . Flight . | . . . . . Fastest Speed 50 | 50 160 160 160 160 Average Speed 302 | 129 160 268 519 211 Slowest Speed 2600 | 160 160 400 2600 235 Overloaded Moves . | . . . . . Propulsion Burnouts . | . . . . . Robots Hopped . | . . . . . Cave-ins Triggered . | . . . . . Exploration Rate (%) 23 | 4 43 40 21 10 Regions Visited 4 Branch Regions 2 Pre-discovered Areas . | . . . . . Known Exits Taken . | . . . . . Unknown Exits Taken 4 | 1 1 1 1 . Scrap Searched . | . . . . . Spaces Dug . | . . . . . Terrain Destroyed 1 | . . . 1 . Melee . | . . . . . Projectile 1 | . . . 1 . AOE . | . . . . . Terrain Rammed . | . . . . . Walls Destroyed . | . . . . . Machines Disabled . | . . . . . Actions | -11 -10 -10 -9 -9 --------- Run | Yrd Mat Min Mat Min Total 966 | 57 290 224 338 57 Wait 39 | 1 2 . 36 . Move 742 | 42 258 182 240 20 Hop . | . . . . . Pick Up 38 | 8 8 11 11 . Fast Attach 1 | . . 1 . . Attach 22 | 6 2 2 10 2 Detach 3 | . . 1 1 1 Swap 10 | . 3 3 4 . Drop 9 | . 2 7 . . Fire 102 | . 15 17 36 34 Melee . | . . . . . Ram . | . . . . . Kick . | . . . . . Crush . | . . . . . Escape Stasis . | . . . . . Rewire . | . . . . . Trap . | . . . . . Miscellaneous . | . . . . . Route ------- -11/Scrapyard -10/Materials -10/Mines -9/Materials -9/Mines History --------- Turn | Location | Event 6 | -11/Scrapyard | Discovered new exit (range 15) 70 | -11/Scrapyard | Entered Materials 315 | -10/Materials | Build established: Mutant 445 | -10/Materials | Discovered new exit (range 10) 544 | -10/Materials | Entered Mines 623 | -10/Mines | Assisted by bots powering up and referring to "LRC-V3" 751 | -10/Mines | System corruption reached 10% 1048 | -10/Mines | Build established: Hauler-Mutant 1077 | -10/Mines | Discovered new exit (range 5) 1097 | -10/Mines | Entered Materials 1097 | -9/Materials | Evolved 2 slots: Utility x2 1658 | -9/Materials | Discovered new exit (range 16) 1819 | -9/Materials | Lost 6 parts (1p2n1u2w) 2499 | -9/Materials | Entered Mines 2500 | -9/Mines | Assembled infested the area 2539 | -9/Mines | Core integrity fell below 50% 2583 | -9/Mines | Core integrity fell below 20% 2610 | -9/Mines | Destroyed by as-76410 with Assembled Rifle Last Messages --------------- 02547_ as-42745 destroyed. 02551_ Imp. Ion Engine destroyed. 02551_ System corrupted by crushing effect (+3). 02553_ as-24171 destroyed. 02555_ as-28859 knocked back. 02557_ Knocked back. 02559_ System corrupted: IFF burst signal emitted. 02563_ as-66687 suffers critical hit (Burn). 02566_ Imp. Heat Sink destroyed. 02566_ System corrupted by crushing effect (+2). 02567_ as-66687 destroyed. 02569_ Acquired 11 matter. 02569_ Med. Laser destroyed. 02581_ System corrupted: Energy discharge (-38). 02589_ as-28859 destroyed. 02591_ as-14373 destroyed. 02593_ Autogun destroyed. 02593_ System corrupted by crushing effect (+2). 02601_ System corrupted: Com. Wheel fused. Map ----- +----------------------------------------------------+ | ???????????????????????????????? ???? | | ???????????????????????????????? ???? | | ???????????????????????????????? ???? | | ???????????????????????????????? ???? | | ???????????????????????????????# #??? | | ???????????????????????????????# #??? | | ???????????????????????????????# #??? | | ???????????????????????????????# #??? | | ?????????????????????????????###%#??? | | ?????????????????? ???????## %[##?? | | ?????????????????# #####%%==%##? | | ????????????????? =%* #? | | ????????????????? %%* %#? | | ????????????????? ### = #? | | ??????????????????? #??????## #? | | ??????????????????????????????## #? | | ???????????????????????????????# ##? | | ????????????????????????????####%##?? | | ????????????????????????????# %%#??? | | ????????????????????????????#%####??? | | ????????????????????????????# #?????? | | ????????????????????????????# #?????? | | ????????????????????????????# #?????? | | ?????????????????????#?????## ###???? | | ????????????????????## ####a #???? | | ????????????????????# @ a a #??? | | ????????????????????# aa #??? | | ????????????????????# """ #??? | | ????????????????????## ## """ #??? | | ?????????????????????# #?## """ #??? | | ?????????????????????# ???# """ #??? | | ?????????????????????#????# #??? | | ??????????????????????????## #??? | | ???????????????????????????## #???? | | ?????????????????????????????####???? | | ????????????????????????????????????? | | ????????????????????????????????????? | | ????????????????????????????????????? | | ????????????????????????????????????? | | ????????????????????????????????????? | | ????????????????????????????????????? | | ????????????????????????????????????? | | ????????????????????????????????????? | | ????????????????????????????????????? | | ????????????????????????????????????? | | ????????????????????????????????????? | | ????????????????????????????????????? | | ????????????????????????????????????? | | ????????????????????????????????????? | | ????????????????????????????????????? | +----------------------------------------------------+ Best States ------------- Heat Dissipation 42 Energy Generation 14 Energy Capacity 265 Matter Stores 300 Matter Capacity 300 Sight Range 16 Terrain Scan Density 10 Propulsion Shielding 33 Evasion (%) 50 Recoil Reduction 2 Item Schematics ----------------- None Robot Schematics ------------------ None Fabricated ------------ Nothing Alien Tech Used ----------------- None Achievements -------------- System Compromised Use The Force Challenges ------------ None Game ------ Seed DataSmartbombTorch Manual? 0 Play Time 00:20:56 Cumulative 1.3 hours Start 2025.05.02 @ 14:48:08 End 2025.05.02 @ 15:07:20 Sessions 1 Manual Loads 0 Difficulty Rogue Special Mode None Game No. 4 Rogue 4 Adventurer 0 Explorer 0 Win Type - Total 0 Types 0/0/0/0/0/0/0/0/0 Lore% 2 Gallery% 3 Achievement% 4 Wizard Run 0 Options --------- Layout 1 ASCII 0 Keyboard 0 Movement Mouse Keybinds 0 Fullscreen 1 Font 24/Smallcaps Map View 50x35 Zoom Use 0% Tactical HUD 1 Map Filters NONE Filters NONE Steam 1 RUN: f050125b-913d-4aee-9bde-2d0b5b194336